bitfinex/quotes_SOLUSD_20250929
["timestamp","ask_amount","ask_price","bid_price","bid_amount"]
[1759128004512,0.86,208.85,208.84,41.72835472]
[1759128005006,0.86,208.85,208.84,4.78835472]
[1759128005207,0.86,208.85,208.84,41.72835472]
[1759128007409,3.06534761,208.85,208.84,41.72835472]
[1759128007603,3.06534761,208.85,208.84,4.78835472]
[1759128007904,3.06534761,208.85,208.84,41.72835472]
[1759128008300,3.06534761,208.85,208.81,4.78904267]
[1759128008486,0.66,208.84,208.82,36.94]
[1759128008683,2.86534761,208.83,208.81,4.78904267]
[1759128008886,2.20534761,208.83,208.81,41.72904267]
[1759128009098,2.20534761,208.83,208.81,4.78904267]
[1759128009411,0.66,208.82,208.81,41.72904267]
[1759128011398,3.06534761,208.85,208.81,53.70164934]
[1759128011595,2.40534761,208.85,208.82,36.94]
[1759128011799,0.66,208.84,208.81,16.76164934]
[1759128012006,0.66,208.83,208.82,36.94]
[1759128012401,0.2,208.85,208.84,26.0]
[1759128012604,0.2,208.85,208.84,76.53559401]
[1759128012905,0.2,208.85,208.84,40.28559401]
[1759128013109,0.2,208.85,208.84,77.22559401]
[1759128013294,0.86,208.85,208.83,4.78858401]
[1759128013628,0.86,208.85,208.84,36.94]
[1759128014700,0.86,208.85,208.83,4.78858401]
[1759128014890,0.86,208.85,208.84,36.94]
[1759128014891,0.2,208.85,208.84,36.94]
[1759128015614,0.86,208.85,208.84,41.72835472]
[1759128016689,0.86,208.85,208.81,39.59559401]
[1759128016918,0.66,208.84,208.81,39.59559401]
[1759128017212,0.66,208.83,208.81,30.78904267]
[1759128017389,0.66,208.82,208.81,67.72904267]
[1759128017901,2.86534761,208.84,208.81,30.78904267]
[1759128018086,0.2,208.85,208.8,11.97306248]
[1759128018087,2.20534761,208.82,208.8,26.0]
[1759128018289,0.66,208.81,208.8,26.0]
[1759128018504,0.66,208.81,208.8,62.94]
[1759128018706,2.20534761,208.82,208.8,67.72927203]
[1759128018910,3.06534761,208.85,208.8,42.7624521]
[1759128019217,0.86,208.85,208.81,36.94]
[1759128019405,0.86,208.85,208.82,36.94]
[1759128020015,0.86,208.85,208.8,43.4524521]
[1759128020215,0.86,208.85,208.84,4.78835472]
[1759128021612,0.86,208.85,208.8,26.69]
[1759128021613,0.86,208.85,208.81,4.78904267]
[1759128021915,0.86,208.85,208.78,2.40534761]
[1759128021916,2.20534761,208.83,208.78,4.78971339]
[1759128022218,0.2,208.85,208.78,4.78971339]
[1759128022219,2.20534761,208.81,208.78,4.78971339]
[1759128022395,0.7,208.8,208.78,4.78971339]
[1759128022792,2.20534761,208.83,208.78,4.78971339]
[1759128022995,0.7,208.82,208.78,4.78971339]
[1759128023204,0.7,208.81,208.78,4.78971339]
[1759128023405,0.7,208.8,208.78,4.78971339]
[1759128023919,0.7,208.79,208.78,4.78971339]
[1759128029521,0.7,208.79,208.75,16.76624517]
[1759128029715,0.7,208.79,208.76,36.94]
[1759128030016,7.67604283,208.81,208.76,36.94]
[1759128030214,0.7,208.78,208.75,16.76624517]
[1759128030515,0.7,208.78,208.76,36.94]
[1759128031023,0.7,208.8,208.75,16.76624517]
[1759128031194,0.7,208.79,208.76,36.94]
[1759128032324,0.7,208.79,208.77,4.78996024]
[1759128032807,7.67604283,208.81,208.77,5.46996024]
[1759128033127,5.47069522,208.81,208.77,16.76486084]
[1759128033305,2.90534761,208.84,208.78,37.62]
[1759128033506,2.20534761,208.84,208.78,0.68]
[1759128033704,0.7,208.83,208.79,36.94]
[1759128033900,0.7,208.82,208.79,36.94]
[1759128034102,0.7,208.82,208.78,0.68]
[1759128034317,0.7,208.82,208.8,4.78927203]
[1759128036320,0.7,208.82,208.79,41.72950141]
[1759128036520,0.7,208.82,208.79,4.78950141]
[1759128036704,0.7,208.82,208.79,41.72950141]
[1759128037222,2.20534761,208.84,208.79,54.38325494]
[1759128037526,0.7,208.83,208.79,54.38325494]
[1759128038024,2.20534761,208.84,208.79,53.70325494]
[1759128038198,0.2,208.85,208.79,53.70325494]
[1759128038199,0.2,208.85,208.8,0.68]
[1759128038402,0.2,208.85,208.82,16.76084666]
[1759128038610,0.2,208.85,208.82,54.38084666]
[1759128040408,0.2,208.85,208.83,0.68]
[1759128040616,0.2,208.85,208.83,37.62]
[1759128040905,0.2,208.85,208.84,14.27559401]
[1759128041104,0.2,208.85,208.84,53.13521009]
[1759128042229,0.2,208.85,208.84,57.92356481]
[1759128044628,0.2,208.85,208.84,20.98356481]
[1759128044829,0.2,208.85,208.84,57.92356481]
[1759128047235,0.2,208.85,208.84,20.98356481]
[1759128047410,0.2,208.85,208.84,57.92356481]
[1759128049136,0.9,208.85,208.84,20.30356481]
[1759128049424,0.9,208.85,208.84,4.78835472]
[1759128049604,0.9,208.85,208.84,41.70835472]
[1759128051320,0.2,208.85,208.84,4.78835472]
[1759128051513,0.2,208.85,208.84,41.70835472]
[1759128054824,0.2,208.85,208.84,4.78835472]
[1759128055123,0.2,208.85,208.84,41.70835472]
[1759128056911,0.2,208.85,208.84,4.78835472]
[1759128057133,0.2,208.85,208.84,41.70835472]
[1759128057532,0.2,208.85,208.84,4.78835472]
[1759128057834,0.2,208.85,208.84,41.70835472]
[1759128058128,0.2,208.85,208.84,36.92]
[1759128058654,0.92,208.85,208.8,4.78914003]
[1759128058839,2.92534761,208.84,208.81,36.92]
[1759128059138,0.72,208.84,208.82,36.92]
[1759128060127,0.2,208.85,208.83,36.92]
[1759128060838,0.2,208.85,208.84,36.92]
[1759128061036,0.2,208.85,208.81,13.59559401]
[1759128061037,0.72,208.84,208.81,13.59559401]
[1759128061222,0.2,208.85,208.82,36.92]
[1759128061532,0.92,208.85,208.83,36.92]
[1759128062025,0.92,208.85,208.83,41.70838703]
[1759128062646,0.72,208.84,208.83,36.92]
[1759128062863,0.72,208.84,208.77,12.64459613]
[1759128063025,2.92534761,208.83,208.78,36.92]
[1759128063231,0.72,208.82,208.78,36.92]
[1759128063553,2.20534761,208.83,208.78,36.92]
[1759128063554,0.72,208.81,208.78,41.70973081]
[1759128063733,0.72,208.81,208.79,36.92]
[1759128064059,2.92534761,208.83,208.79,36.92]
[1759128064236,0.72,208.82,208.79,36.92]
[1759128064952,0.72,208.82,208.8,4.78927203]
[1759128065455,0.2,208.85,208.8,4.78927203]
[1759128065757,2.40534761,208.85,208.81,0.67]
[1759128065951,3.12534761,208.85,208.81,0.67]
[1759128066132,0.2,208.85,208.81,0.67]
[1759128066333,0.2,208.85,208.82,37.59]
[1759128066646,0.2,208.85,208.83,36.92]
[1759128067857,0.92,208.85,208.83,36.92]
[1759128068036,0.92,208.85,208.82,41.70866835]
[1759128069336,0.2,208.85,208.82,41.70866835]
[1759128069655,0.72,208.84,208.81,4.78904267]
[1759128069959,0.72,208.84,208.82,36.92]
[1759128070260,0.72,208.84,208.81,41.70904267]
[1759128073454,0.72,208.84,208.81,4.78904267]
[1759128073675,0.69,208.84,208.82,36.92]
[1759128073865,0.69,208.84,208.81,36.92]
[1759128074541,0.69,208.84,208.8,16.7624521]
[1759128074860,0.69,208.84,208.81,36.92]
[1759128078941,0.2,208.85,208.82,4.78881333]
[1759128079442,1.41143941,208.83,208.82,4.78881333]
[1759128080264,0.2,208.85,208.82,17.42084666]
[1759128080453,0.2,208.85,208.83,37.58]
[1759128081043,0.2,208.85,208.84,4.78835472]
[1759128081460,0.2,208.85,208.84,19.07394873]
[1759128082166,0.2,208.85,208.84,55.99394873]
[1759128082466,0.2,208.85,208.84,19.07394873]
[1759128082649,0.2,208.85,208.84,55.99394873]
[1759128085348,0.2,208.85,208.84,19.07394873]
[1759128085550,0.2,208.85,208.84,55.99394873]
[1759128085962,0.2,208.87,208.84,67.96483553]
[1759128086177,0.2,208.87,208.86,13.59559401]
[1759128086346,0.2,208.87,208.86,50.51559401]
[1759128086548,0.2,208.87,208.86,51.20559401]
[1759128086969,0.2,208.87,208.86,50.51559401]
[1759128087152,0.2,208.87,208.86,13.59559401]
[1759128087468,0.2,208.87,208.86,69.56064963]
[1759128088147,0.2,208.87,208.86,18.3834902]
[1759128088349,1e-08,208.87,208.86,55.9934902]
[1759128088566,0.7,208.96,208.9,39.59559401]
[1759128088864,0.7,208.96,208.91,36.92]
[1759128089070,0.7,208.96,208.92,13.59559401]
[1759128089248,0.7,208.96,208.94,13.59559401]
[1759128089450,0.7,208.96,208.95,41.70583393]
[1759128090152,0.7,208.96,208.95,4.78583393]
[1759128090678,1.41143941,208.97,208.95,41.70583393]
[1759128090854,0.7,208.97,208.95,41.70583393]
[1759128091857,0.2,208.98,208.96,36.92]
[1759128092061,0.2,208.98,208.95,4.78583393]
[1759128092371,1.41143941,208.97,208.92,13.59559401]
[1759128092679,0.7,208.96,208.94,4.78606298]
[1759128092864,0.7,208.96,208.95,36.92]
[1759128093665,0.7,208.96,208.95,41.70583393]
[1759128093980,0.7,208.96,208.95,4.78583393]
[1759128096778,0.7,208.96,208.95,41.68583393]
[1759128097071,2.31143941,208.98,208.95,41.68583393]
[1759128097281,0.7,208.97,208.95,41.68583393]
[1759128097470,0.7,208.96,208.95,41.68583393]
[1759128098082,1.61143941,208.98,208.95,41.68583393]
[1759128098276,0.7,208.97,208.95,41.68583393]
[1759128099184,1.61143941,208.98,208.95,41.68583393]
[1759128099393,0.2,208.98,208.95,4.78583393]
[1759128099588,0.2,208.98,208.96,36.9]
[1759128099775,0.9,208.98,208.96,36.9]
[1759128100081,0.2,208.98,208.96,36.9]
[1759128100271,0.2,208.98,208.97,4.78537589]
[1759128100658,0.2,208.98,208.97,41.68537589]
[1759128101866,0.2,208.98,208.97,4.78537589]
[1759128102176,0.2,208.98,208.97,41.68537589]
[1759128102385,0.2,208.98,208.97,36.9]
[1759128104372,0.2,208.98,208.97,41.68537589]
[1759128104570,0.9,208.98,208.97,41.68537589]
[1759128104775,0.9,208.98,208.97,4.78537589]
[1759128105087,0.9,208.98,208.97,41.68537589]
[1759128106767,0.9,208.98,208.89,13.59559401]
[1759128106768,2.31143941,208.98,208.89,13.59559401]
[1759128107083,1.41143941,208.92,208.87,4.78766696]
[1759128107285,0.7,208.91,208.88,36.9]
[1759128107492,0.7,208.91,208.87,4.78766696]
[1759128107697,1.41143941,208.88,208.85,4.78791592]
[1759128107898,2.11143941,208.88,208.85,4.78791592]
[1759128108495,2.11143941,208.88,208.83,16.75977298]
[1759128108701,0.7,208.87,208.85,36.9]
[1759128108903,0.7,208.86,208.85,36.9]
[1759128109089,2.11143941,208.86,208.85,36.9]
[1759128109695,2.11143941,208.86,208.83,4.78858401]
[1759128109994,0.7,208.86,208.84,36.9]
[1759128110800,0.7,208.86,208.82,4.78880031]
[1759128110995,0.7,208.85,208.81,26.0]
[1759128111226,1.41143941,208.82,208.81,26.66]
[1759128111395,1.41143941,208.84,208.81,63.56]
[1759128111598,1.41143941,208.84,208.82,0.66]
[1759128111789,1.41143941,208.85,208.83,0.66]
[1759128111982,1.41143941,208.85,208.82,36.9]
[1759128112183,1.41143941,208.85,208.82,0.66]
[1759128112383,1.41143941,208.85,208.83,36.9]
[1759128112882,1.41143941,208.85,208.84,4.78835472]
[1759128113488,4.78592519,208.95,208.86,26.0]
[1759128113691,1.41143941,208.89,208.87,36.9]
[1759128114205,1.41143941,208.89,208.86,26.0]
[1759128114409,1.41143941,208.89,208.87,36.92]
[1759128114594,1.41143941,208.89,208.88,4.78743776]
[1759128115086,2.11143941,208.91,208.88,4.78743776]
[1759128115287,0.7,208.9,208.88,4.78743776]
[1759128115700,0.7,208.9,208.87,4.78766696]
[1759128115886,1.41143941,208.91,208.87,4.78766696]
[1759128116087,0.7,208.9,208.87,41.70766696]
[1759128117383,1.41143941,208.91,208.87,41.70766696]
[1759128117589,1.41143941,208.91,208.87,4.78766696]
[1759128117889,2.11143941,208.91,208.88,36.92]
[1759128120320,2.11143941,208.91,208.88,41.70727088]
[1759128120812,2.11143941,208.93,208.88,5.44727088]
[1759128121025,1.41143941,208.93,208.88,42.34727088]
[1759128121315,0.7,208.92,208.88,42.34727088]
[1759128122093,1.41143941,208.93,208.89,36.9]
[1759128122300,2.11143941,208.93,208.89,36.9]
[1759128122495,2.11143941,208.93,208.9,36.9]
[1759128123112,2.11143941,208.93,208.9,41.68676687]
[1759128124118,2.11143941,208.93,208.89,4.78720857]
[1759128124297,2.11143941,208.93,208.9,36.9]
[1759128124495,0.7,208.92,208.89,4.78720857]
[1759128124700,0.7,208.92,208.89,36.9]
[1759128125002,0.7,208.91,208.89,36.9]
[1759128125503,0.7,208.91,208.88,4.78742823]
[1759128125703,0.7,208.91,208.88,41.68742823]
[1759128127207,2.20420349,208.92,208.88,41.68742823]
[1759128127414,38.16302988,208.98,208.87,4.78764695]
[1759128127415,2.20420349,208.9,208.87,4.78764695]
[1759128127618,2.20420349,208.88,208.8,16.76200729]
[1759128127805,2.20420349,208.86,208.8,17.42200729]
[1759128128116,2.90420349,208.86,208.8,17.42200729]
[1759128128314,2.90420349,208.86,208.81,36.9]
[1759128128622,2.90420349,208.86,208.81,37.56]
[1759128128835,2.20420349,208.86,208.82,17.42084666]
[1759128129006,2.20420349,208.86,208.83,0.66]
[1759128130117,0.7,208.88,208.83,0.66]
[1759128130301,2.20420349,208.88,208.84,0.66]
[1759128130505,2.20420349,208.88,208.85,0.66]
[1759128130713,2.20420349,208.88,208.86,4.78789619]
[1759128131423,0.7,208.91,208.86,4.78789619]
[1759128131424,2.20420349,208.9,208.86,4.78789619]
[1759128131726,2.90420349,208.9,208.86,4.78789619]
[1759128131933,2.20420349,208.9,208.86,4.78789619]
[1759128132114,0.7,208.89,208.86,4.78789619]
[1759128134101,2.20420349,208.9,208.86,4.78789619]
[1759128134307,2.20420349,208.9,208.86,41.70789619]
[1759128134523,2.86420349,208.9,208.86,41.70789619]
[1759128134719,2.20420349,208.9,208.87,0.69]
[1759128135827,2.86420349,208.9,208.86,53.67763668]
[1759128137436,2.20420349,208.9,208.86,41.70789619]
[1759128137729,2.20420349,208.88,208.86,4.78789619]
[1759128137906,2.20420349,208.88,208.86,41.70789619]
[1759128138310,2.20420349,208.88,208.86,4.78789619]
[1759128138827,2.20420349,208.9,208.86,54.36763668]
[1759128139026,2.20420349,208.9,208.87,0.69]
[1759128139327,2.20420349,208.9,208.88,0.69]
[1759128139505,2.20420349,208.92,208.89,4.78720857]
[1759128139704,2.86420349,208.92,208.89,4.78720857]
[1759128139912,0.66,208.91,208.87,41.70753088]
[1759128140114,26.0,208.96,208.86,4.78787401]
[1759128140115,2.86420349,208.9,208.86,4.78787401]
[1759128140415,0.66,208.89,208.86,4.78787401]
[1759128144224,2.20420349,208.9,208.86,4.78787401]
[1759128144414,2.91420349,208.88,208.86,4.78787401]
[1759128145511,2.20420349,208.88,208.86,4.78787401]
[1759128148519,2.20420349,208.9,208.87,5.47766696]
[1759128148741,2.20420349,208.9,208.88,37.61]
[1759128148906,2.20420349,208.92,208.88,37.61]
[1759128149106,2.91420349,208.92,208.88,0.69]
[1759128149328,2.91420349,208.92,208.88,36.92]
[1759128149516,2.91420349,208.92,208.87,4.78766696]
[1759128149820,2.91420349,208.92,208.89,4.78720857]
[1759128150703,2.20420349,208.9,208.88,36.9]
[1759128150903,2.91420349,208.9,208.88,36.9]
[1759128151413,2.91420349,208.9,208.87,4.78747016]
[1759128151610,2.91420349,208.9,208.87,41.68747016]
[1759128151833,0.71,208.89,208.87,41.68747016]
[1759128152125,2.20420349,208.9,208.87,4.78747016]
[1759128152306,2.91420349,208.9,208.87,41.68747016]
[1759128153536,2.91420349,208.9,208.86,18.3834902]
[1759128153725,2.91420349,208.9,208.87,36.9]
[1759128154928,2.91420349,208.9,208.87,41.68750338]
[1759128155136,2.20420349,208.9,208.87,41.68750338]
[1759128155434,2.20420349,208.88,208.85,4.78812544]
[1759128155733,0.71,208.87,208.85,41.68812544]
[1759128155934,0.71,208.87,208.85,4.78812544]
[1759128156933,2.20420349,208.88,208.85,5.47812544]
[1759128157131,2.20420349,208.88,208.85,42.37812544]
[1759128157639,2.20420349,208.88,208.85,5.47812544]
[1759128157830,0.71,208.92,208.86,51.18559401]
[1759128158135,2.20420349,208.9,208.87,36.9]
[1759128158333,0.71,208.89,208.85,4.78812544]
[1759128158638,2.20420349,208.88,208.85,41.68812544]
[1759128158933,2.91420349,208.88,208.85,41.68812544]
[1759128159133,2.20420349,208.88,208.85,41.68812544]
[1759128159838,2.20420349,208.88,208.85,4.78812544]
[1759128160040,2.20420349,208.88,208.85,41.68812544]
[1759128161434,0.71,208.9,208.85,42.37812544]
[1759128161638,2.91420349,208.89,208.85,42.37812544]
[1759128164526,2.20420349,208.89,208.86,0.69]
[1759128164830,2.20420349,208.89,208.86,37.59]
[1759128166526,2.20420349,208.89,208.87,4.78766696]
[1759128166727,2.91420349,208.89,208.87,4.78766696]
[1759128167343,2.91420349,208.89,208.86,36.9]
[1759128167841,2.91420349,208.89,208.86,41.68781604]
[1759128169246,0.71,208.89,208.86,41.68781604]
[1759128169429,0.71,208.89,208.86,4.78781604]
[1759128169630,0.71,208.89,208.86,41.68781604]
[1759128169830,2.20420349,208.9,208.86,41.68781604]
[1759128170130,0.71,208.89,208.86,41.68781604]
[1759128170533,2.20420349,208.9,208.86,42.37781604]
[1759128170738,2.91420349,208.9,208.86,42.37781604]
[1759128171132,2.20420349,208.9,208.86,5.47781604]
[1759128171449,2.20420349,208.9,208.87,37.56]
[1759128171639,0.67,208.93,208.88,37.56]
[1759128171640,2.20420349,208.92,208.88,37.56]
[1759128171938,2.87420349,208.92,208.88,37.56]
[1759128173240,2.87420349,208.92,208.89,4.78720857]
[1759128176027,2.20420349,208.92,208.88,41.68742357]
[1759128176235,2.87420349,208.92,208.88,41.68742357]
[1759128178346,0.67,208.91,208.87,13.59559401]
[1759128178559,2.20420349,208.9,208.88,36.9]
[1759128179432,2.20420349,208.9,208.88,41.6872712]
[1759128179860,2.20420349,208.9,208.88,36.9]
[1759128180042,2.20420349,208.9,208.88,41.68740265]
[1759128181365,0.67,208.89,208.86,4.78775143]
[1759128181655,0.67,208.89,208.87,36.9]
[1759128181868,2.20420349,208.9,208.87,36.9]
[1759128182173,2.87420349,208.9,208.87,36.9]
[1759128182462,2.87420349,208.9,208.86,4.78775143]
[1759128182659,2.87420349,208.9,208.87,36.9]
[1759128182838,2.20420349,208.9,208.87,37.56]
[1759128183430,2.20420349,208.9,208.88,4.78743776]
[1759128184051,2.87420349,208.9,208.88,4.78743776]
[1759128184754,0.67,208.89,208.85,11.97016794]
[1759128185144,0.67,208.89,208.86,36.9]
[1759128185959,2.87420349,208.88,208.85,13.59559401]
[1759128186152,2.20420349,208.88,208.86,36.9]
[1759128186353,2.87420349,208.88,208.86,36.9]
[1759128187068,2.20420349,208.88,208.83,14.25559401]
[1759128187244,0.67,208.87,208.85,13.59559401]
[1759128187442,2.20420349,208.86,208.79,12.63330003]
[1759128187768,0.67,208.85,208.82,36.9]
[1759128188064,2.20420349,208.85,208.82,50.49559401]
[1759128188266,2.08153471,208.86,208.82,50.49559401]
[1759128188445,0.67,208.85,208.82,50.49559401]
[1759128189161,0.67,208.85,208.82,55.28432304]
[1759128190275,0.67,208.85,208.82,41.68872903]
[1759128190677,0.67,208.85,208.82,36.9]
[1759128191289,1.41153471,208.84,208.81,4.78904267]
[1759128191575,1.41153471,208.82,208.79,55.28493918]
[1759128191780,1.41153471,208.82,208.79,55.94493918]
[1759128192079,1.41153471,208.82,208.79,41.68934517]
[1759128192671,1.41153471,208.82,208.79,36.9]
[1759128192967,2.10153471,208.82,208.79,36.9]
[1759128193178,1.41153471,208.8,208.78,4.78972616]
[1759128193362,2.10153471,208.8,208.78,4.78972616]
[1759128193756,2.10153471,208.8,208.77,41.68994666]
[1759128194969,1.41153471,208.8,208.77,41.68994666]
[1759128195348,1.41153471,208.8,208.77,42.37994666]
[1759128195553,1.41153471,208.8,208.77,5.47994666]
[1759128195760,1.41153471,208.8,208.77,42.37994666]
[1759128195966,1.41153471,208.8,208.77,5.47994666]
[1759128196166,1.41153471,208.8,208.77,42.37994666]
[1759128197677,0.69,208.84,208.79,13.59559401]
[1759128197881,1.41153471,208.89,208.81,13.59559401]
[1759128198078,1.41153471,208.91,208.83,13.59559401]
[1759128198283,1.41153471,208.91,208.84,0.69]
[1759128198455,1.41153471,208.91,208.85,36.9]
[1759128198661,1.41153471,208.91,208.86,13.59559401]
[1759128198861,1.41153471,208.91,208.87,0.69]
[1759128199175,1.41153471,208.92,208.87,37.59]
[1759128199581,2.10153471,208.92,208.88,4.78743776]
[1759128200065,0.69,208.91,208.88,4.78743776]
[1759128200583,0.69,208.9,208.88,41.68743776]
[1759128201080,0.69,208.9,208.88,4.78743776]
[1759128201307,0.71,208.89,208.87,41.68765476]
[1759128202381,0.71,208.89,208.85,16.75809495]
[1759128202679,0.71,208.89,208.86,36.9]
[1759128203464,0.71,208.89,208.87,4.78766696]
[1759128204184,1.41153471,208.9,208.87,4.78766696]
[1759128204981,0.71,208.89,208.87,4.78766696]
[1759128205163,2.12153471,208.88,208.83,14.27559401]
[1759128205364,2.12153471,208.88,208.84,36.9]
[1759128206179,2.12153471,208.88,208.84,41.68835472]
[1759128207885,2.12153471,208.88,208.84,4.78835472]
[1759128208083,2.12153471,208.88,208.84,17.43924152]
[1759128208488,2.12153471,208.88,208.84,54.33924152]
[1759128211167,2.12153471,208.88,208.84,53.65924152]
[1759128211366,1.41153471,208.88,208.84,53.65924152]
[1759128211575,0.71,208.87,208.84,4.78835472]
[1759128211781,0.71,208.86,208.84,36.9]
[1759128212790,0.71,208.86,208.84,41.68820542]
[1759128216315,2.12153471,208.88,208.84,41.68820542]
[1759128216498,0.71,208.87,208.84,41.68820542]
[1759128216791,1.41153471,208.86,208.84,41.68820542]
[1759128217901,2.12153471,208.86,208.84,41.68820542]
[1759128218401,1.41153471,208.86,208.84,41.68820542]
[1759128218579,30.78558939,208.97,208.85,14.27559401]
[1759128218780,2.12153471,208.94,208.86,37.58]
[1759128219101,2.12153471,208.94,208.87,37.58]
[1759128219400,2.12153471,208.94,208.88,0.68]
[1759128219590,2.12153471,208.94,208.89,36.9]
[1759128219780,0.71,208.93,208.9,4.78697941]
[1759128220802,2.12153471,208.94,208.9,4.78697941]
[1759128221302,1.41153471,208.94,208.9,4.78697941]
[1759128221504,0.71,208.93,208.9,4.78697941]
[1759128221674,1.41153471,208.94,208.9,4.78697941]
[1759128221881,2.12153471,208.94,208.9,5.46697941]
[1759128222398,2.12153471,208.94,208.9,4.78697941]
[1759128222698,0.71,208.94,208.9,4.78697941]
[1759128223091,0.71,208.94,208.9,41.66697941]
[1759128223389,26.0,208.97,208.91,14.27559401]
[1759128223594,26.0,208.97,208.92,0.68]
[1759128223788,26.0,208.97,208.93,4.78629205]
[1759128223999,0.2,208.98,208.93,4.78629205]
[1759128224000,0.2,208.98,208.94,0.68]
[1759128224194,0.2,208.98,208.95,0.68]
[1759128224705,0.2,208.98,208.95,37.56]
[1759128225099,0.2,208.98,208.96,4.7856049]
[1759128225482,0.2,208.98,208.93,12.64573014]
[1759128225483,1.41153471,208.97,208.93,12.64573014]
[1759128225687,1.41153471,208.97,208.94,36.88]
[1759128226905,1.41153471,208.97,208.94,37.56]
[1759128227210,1.41153471,208.97,208.94,5.46606298]
[1759128227387,1.41153471,208.97,208.94,42.34606298]
[1759128227795,1.41153471,208.97,208.94,5.46606298]
[1759128227982,1.41153471,208.97,208.94,42.34606298]
[1759128229396,1.41153471,208.97,208.94,17.43122044]
[1759128229601,1.61153471,208.98,208.95,0.68]
[1759128229911,1.61153471,208.98,208.96,0.68]
[1759128230414,1.61153471,208.98,208.97,4.78537589]
[1759128231509,1.61153471,208.98,208.96,4.7856049]
[1759128232001,1.61153471,208.98,208.96,5.4756049]
[1759128232618,1.61153471,208.98,208.96,42.3556049]
[1759128233509,1.61153471,208.98,208.96,41.6656049]
[1759128234010,1.61153471,208.98,208.96,42.3556049]
[1759128236194,1.61153471,208.98,208.96,41.6656049]
[1759128237018,0.67,208.97,208.96,4.7856049]
[1759128237312,0.67,208.97,208.95,36.88]
[1759128237520,1.61153471,208.98,208.95,36.88]
[1759128237819,0.67,208.97,208.95,36.88]
[1759128238023,0.67,208.97,208.96,4.7856049]
[1759128238222,1.61153471,208.98,208.96,4.7856049]
[1759128238404,2.28153471,208.98,208.96,4.7856049]
[1759128238923,0.67,208.97,208.96,4.7856049]
[1759128239089,1.61153471,208.98,208.96,4.7856049]
[1759128240900,1.61153471,208.98,208.97,5.47537589]
[1759128241101,1.61153471,208.98,208.97,4.78537589]
[1759128241297,0.2,208.98,208.97,4.78537589]
[1759128241502,0.2,208.98,208.97,5.47537589]
[1759128241706,0.2,208.98,208.97,42.35537589]
[1759128241909,0.2,208.98,208.97,5.47537589]
[1759128242210,0.2,208.98,208.97,55.9509699]
[1759128245004,0.2,208.98,208.97,55.2609699]
[1759128246818,0.2,208.98,208.97,18.3809699]
[1759128247017,0.2,208.98,208.97,55.2409699]
[1759128247829,0.2,208.98,208.97,41.64537589]
[1759128248331,0.2,208.98,208.97,55.2409699]
[1759128251431,0.2,208.98,208.97,41.64537589]
[1759128252633,0.2,208.98,208.97,55.2409699]
[1759128256731,0.2,208.98,208.97,18.3809699]
[1759128256931,0.2,208.98,208.97,55.2409699]
[1759128257136,0.89,208.98,208.97,41.64537589]
[1759128257314,0.89,208.98,208.97,36.86]
[1759128257515,0.2,208.98,208.97,36.86]
[1759128258931,0.2,208.98,208.96,13.59559401]
[1759128259111,0.2,208.98,208.97,36.86]
[1759128259316,0.2,208.98,208.97,41.64537589]
[1759128259629,0.2,208.98,208.97,4.78537589]
[1759128259833,0.2,208.98,208.97,41.64537589]
[1759128262934,0.2,208.98,208.97,4.78537589]
[1759128263132,0.2,208.98,208.97,41.64537589]
[1759128263736,0.2,208.98,208.97,4.78537589]
[1759128264035,0.2,208.98,208.97,41.64537589]
[1759128264240,0.2,208.98,208.97,4.78537589]
[1759128264438,0.2,208.98,208.97,41.64537589]
[1759128264841,0.2,209.03,209.01,13.59559401]
[1759128265025,0.2,209.03,209.02,50.45559401]
[1759128265220,0.2,209.03,208.97,55.07569506]
[1759128265423,0.69,209.02,209.0,13.59559401]
[1759128265834,0.69,209.02,209.01,36.86]